fUSD/lending_fUSD_20240713
["ID","MTS","AMOUNT","RATE_DAILY","PERIOD"]
[331964057,1720903951951,-183.29675014,0.00010699,2]
[331964060,1720904090519,167.63655556,9.119e-05,2]
[331964061,1720904090542,167.63655556,9.119e-05,2]
[331964062,1720904090562,167.63655556,9.119e-05,2]
[331964063,1720904090582,70.75033332,9.119e-05,2]
[331964064,1720904092935,-270.37793359,0.000102,3]
[331964066,1720904204406,-173.55877246,0.000101,2]
[331964068,1720904266502,-177.18992506,0.000101,2]
[331964069,1720904268247,-77.84007494,0.000101,2]
[331964070,1720904268268,-85.82604258,0.000101,2]
[331964071,1720904268763,-150.0,0.000101,2]
[331964072,1720904269787,-150.0,0.000101,2]
[331964073,1720904270229,-150.0,0.000101,2]
[331964074,1720904272562,-150.0,0.000101,2]
[331964075,1720904273153,-150.0,0.000101,2]
[331964076,1720904275196,-150.0,0.000101,2]
[331964077,1720904277650,-150.0,0.000101,2]
[331964078,1720904278248,-150.0,0.000101,2]
[331964079,1720904279360,-56.65688365,0.000101,2]
[331964080,1720904279381,-93.34311635,0.000101,2]
[331964086,1720904356427,-106.63973422,0.000101,2]
[331964087,1720904356449,-43.36026578,0.000101,2]
[331964088,1720904368131,-150.0,0.000101,2]
[331964089,1720904368300,-106.63973422,0.000101,2]
[331964091,1720904526015,176.62,8.247e-05,2]
[331964093,1720904574060,7560.61129184,8.247e-05,2]
[331964094,1720904577850,150.0,8.247e-05,2]
[331964095,1720904577873,150.0,8.247e-05,2]
[331964096,1720904577895,150.0,8.247e-05,2]
[331964097,1720904577918,150.0,8.247e-05,2]
[331964098,1720904577937,150.0,8.247e-05,2]
[331964099,1720904577958,150.0,8.247e-05,2]
[331964100,1720904577978,60.43759767,8.247e-05,2]
[331964101,1720904580433,89.56240233,8.247e-05,2]
[331964102,1720904580453,150.0,8.247e-05,2]
[331964103,1720904580473,150.0,8.247e-05,2]
[331964104,1720904580492,150.0,8.247e-05,2]
[331964105,1720904580512,150.0,8.247e-05,2]
[331964106,1720904580531,150.0,8.247e-05,2]
[331964107,1720904580551,150.0,8.247e-05,2]
[331964108,1720904580571,150.0,8.247e-05,2]
[331964109,1720904580590,150.0,8.247e-05,2]
[331964110,1720904580611,150.0,8.247e-05,2]
[331964111,1720904580631,150.0,8.247e-05,2]
[331964112,1720904580652,150.0,8.247e-05,2]
[331964113,1720904580673,150.0,8.247e-05,2]
[331964114,1720904580693,150.0,8.247e-05,2]
[331964115,1720904580714,150.0,8.247e-05,2]
[331964116,1720904580735,150.0,8.247e-05,2]
[331964117,1720904580755,150.0,8.247e-05,2]
[331964118,1720904580777,150.0,8.247e-05,2]
[331964119,1720904580797,150.0,8.247e-05,2]
[331964120,1720904580817,150.0,8.247e-05,2]
[331964121,1720904580837,150.0,8.247e-05,2]
[331964122,1720904580857,150.0,8.247e-05,2]
[331964123,1720904580878,150.0,8.247e-05,2]
[331964124,1720904580899,150.0,8.247e-05,2]
[331964125,1720904580920,150.0,8.247e-05,2]
[331964126,1720904580941,150.0,8.247e-05,2]
[331964127,1720904580963,150.0,8.247e-05,2]
[331964128,1720904580983,150.0,8.247e-05,2]
[331964129,1720904581004,150.0,8.247e-05,2]
[331964130,1720904581024,150.0,8.247e-05,2]
[331964131,1720904581044,150.0,8.247e-05,2]
[331964132,1720904581064,150.0,8.247e-05,2]
[331964133,1720904581084,150.0,8.247e-05,2]
[331964134,1720904581108,150.0,8.247e-05,2]
[331964135,1720904581129,150.0,8.247e-05,2]
[331964136,1720904581151,150.0,8.247e-05,2]
[331964137,1720904581172,150.0,8.247e-05,2]
[331964138,1720904581196,150.0,8.247e-05,2]
[331964139,1720904581216,150.0,8.247e-05,2]
[331964140,1720904581237,150.0,8.247e-05,2]
[331964141,1720904581258,150.0,8.247e-05,2]
[331964142,1720904581282,150.0,8.247e-05,2]
[331964143,1720904581303,150.0,8.247e-05,2]
[331964144,1720904581324,150.0,8.247e-05,2]
[331964145,1720904581344,150.0,8.247e-05,2]
[331964146,1720904581365,150.0,8.247e-05,2]
[331964147,1720904581386,150.0,8.247e-05,2]
[331964148,1720904581406,150.0,8.247e-05,2]
[331964149,1720904581428,150.0,8.247e-05,2]
[331964150,1720904581448,150.0,8.247e-05,2]
[331964151,1720904581468,150.0,8.247e-05,2]
[331964152,1720904581488,150.0,8.247e-05,2]
[331964153,1720904581509,150.0,8.247e-05,2]
[331964154,1720904581529,150.0,8.247e-05,2]
[331964155,1720904581549,150.0,8.247e-05,2]
[331964156,1720904581569,150.0,8.247e-05,2]
[331964157,1720904581590,150.0,8.247e-05,2]
[331964158,1720904581615,150.0,8.247e-05,2]
[331964159,1720904581644,150.0,8.247e-05,2]
[331964160,1720904581672,150.0,8.247e-05,2]
[331964161,1720904581698,2262.76870816,8.247e-05,2]
[331964162,1720904581738,1468.19374389,8.247e-05,2]
[331964163,1720904581777,2852.19955864,8.247e-05,2]
[331964164,1720904581816,2668.98408476,8.247e-05,2]
[331964165,1720904581854,2151.24405327,8.247e-05,2]
[331964166,1720904582196,150.0,8.246e-05,2]
[331964167,1720904582219,150.0,8.246e-05,2]
[331964168,1720904582629,150.0,9.071e-05,2]
[331964169,1720904582652,150.0,9.071e-05,2]
[331964170,1720904582676,120.0,9.071e-05,2]
[331964171,1720904583915,152.19751715,8.247e-05,2]
[331964172,1720904583940,8.6146599,8.247e-05,2]
[331964173,1720904584052,-152.19751715,9.978e-05,2]
[331964174,1720904593602,348.94293618,8.247e-05,2]
[331964175,1720904602622,151.05706382,8.247e-05,2]
[331964176,1720904602653,162.5894729,8.247e-05,2]
[331964177,1720904602683,2246.32785246,8.247e-05,2]
[331964179,1720904608602,150.0,8.247e-05,2]
[331964180,1720904608623,150.0,8.247e-05,2]
[331964181,1720904608644,48.94293618,8.247e-05,2]
[331964182,1720904611763,101.05706382,8.247e-05,2]
[331964183,1720904611785,150.0,8.247e-05,2]
[331964184,1720904611806,150.0,8.247e-05,2]
[331964185,1720904611826,289.18782295,8.247e-05,2]
[331964186,1720904611856,531.36696229,8.247e-05,2]
[331964187,1720904620763,526.57681539,8.247e-05,2]
[331964188,1720904620785,695.03503367,8.247e-05,2]
[331964189,1720904668445,923.13982645,8.247e-05,2]
[331964190,1720904668998,7547.13811,8.247e-05,2]
[331964191,1720904688630,2559.97438918,8.247e-05,2]
[331964192,1720904695615,348.11889612,8.247e-05,2]
[331964193,1720904728769,1221.61184906,8.247e-05,2]
[331964194,1720904773133,2559.97438918,8.247e-05,2]
[331964195,1720904831283,1221.61184906,8.247e-05,2]
[331964224,1720904870641,2559.97438918,8.247e-05,2]
[331964225,1720904928293,859.47622254,8.247e-05,2]
[331964228,1720904936499,-1909.728704,9.944e-05,2]
[331964230,1720904936529,-161.77938623,9.995e-05,2]
[331964231,1720904936559,-300.0,9.995e-05,2]
[331964232,1720904936588,-2175.42696859,9.995e-05,2]
[331964233,1720904936622,-1076.58946931,9.995e-05,2]
[331964234,1720904936652,-684.90615013,9.996e-05,2]
[331964235,1720904936680,-2499.1977907,9.996e-05,2]
[331964250,1720904960637,2559.97438918,8.247e-05,2]
[331964251,1720904961035,-318.44771698,9.847e-05,2]
[331964252,1720904961064,-438.1115069,9.996e-05,2]
[331964254,1720904961093,-544.69316985,9.996e-05,2]
[331964256,1720904961122,-155.26034422,0.0001,2]
[331964257,1720904961152,-297.39737969,0.0001,2]
[331964258,1720904961183,-658.11570296,0.0001,2]
[331964259,1720904961215,-200.26351748,0.0001005,2]
[331964260,1720904961244,-300.0,0.00010099,2]
[331964261,1720904961278,-412.09230326,0.000101,2]
[331964262,1720904961307,-1398.70598686,0.000101,2]
[331964263,1720904961350,-1800.43098225,0.000101,2]
[331964272,1720904980637,2559.97438918,8.247e-05,2]
[331964273,1720904986039,-1647.70623089,0.000101,2]
[331964276,1720904986246,-161.77938622,0.000101,2]
[331964277,1720904986279,-200.0,0.000102,2]
[331964278,1720904986311,-600.0,0.000102,3]
[331964279,1720904986342,-1200.0,0.000103,3]
[331964280,1720904986372,-340.25,0.0001031,2]
[331964281,1720904986406,-176.98,0.0001031,2]
[331964282,1720904986436,-526.8423833,0.00010375,2]
[331964283,1720904986477,-473.1576167,0.00010375,2]
[331964284,1720904986510,-1014.64627819,0.000104,3]
[331964287,1720905010994,-335.15,9.826e-05,2]
[331964288,1720905011024,-885.35372181,0.000104,3]
[331964289,1720905011053,-499.99,0.00010448,2]
[331964291,1720905011083,-2500.0,0.000105,3]
[331964292,1720905011112,-250.0,0.00010518,2]
[331964294,1720905011142,-509.8915165,0.000106,3]
[331964295,1720905011176,-1814.55806387,0.000106,3]
[331964312,1720905032076,-541.0788475,0.000106,3]
[331964313,1720905032135,-295.44814184,0.000106,3]
[331964314,1720905032199,-39.02343029,0.000106,3]
[331964315,1720905032209,-600.0,0.000107,3]
[331964316,1720905032220,-600.0,0.000108,3]
[331964317,1720905032229,-600.0,0.000109,3]
[331964318,1720905032239,-300.0,0.00010958,2]
[331964319,1720905032413,-201.51,0.00010959,2]
[331964320,1720905032427,-167.92,0.00010959,2]
[331964321,1720905032436,-839.64,0.00010959,2]
[331964322,1720905032446,-175.45907394,0.00010999,2]
[331964323,1720905032455,-150.0,0.00010999,2]
[331964324,1720905032464,-175.45907394,0.00011,2]
[331964325,1720905032473,-1170.93184282,0.00011,2]
[331964326,1720905032484,-36.73315718,0.00011,2]
[331964327,1720905032494,-325.33736672,0.00011,2]
[331964328,1720905032503,-174.88201534,0.00011,2]
[331964329,1720905032512,-175.45907394,0.00011,2]
[331964330,1720905032522,-169.13159883,0.00011,2]
[331964331,1720905032531,-1292.99345972,0.00011,2]
[331964332,1720905032541,-2183.29332827,0.00011097,2]
[331964335,1720905038143,-7067.04880046,0.00011097,2]
[331964336,1720905038154,-316.0773283,0.00011097,2]
[331964337,1720905038164,-1714.2587667,0.00011097,2]
[331964338,1720905038174,-691.14739766,0.00011097,2]
[331964339,1720905038185,-2435.00945778,0.00011098,2]
[331964340,1720905038196,-1924.39629502,0.00011098,2]
[331964341,1720905038206,-1503.67793902,0.00011098,2]
[331964342,1720905038216,-189.9449251,0.00011098,2]
[331964343,1720905038228,-2216.2853198,0.00011098,2]
[331964349,1720905040430,-860.67414791,0.00011098,2]
[331964350,1720905040441,-359.10672857,0.00011098,2]
[331964351,1720905040509,-1255.18339726,0.00011098,2]
[331964352,1720905040522,-761.97208309,0.00011098,2]
[331964353,1720905040531,-290.03484451,0.00011098,2]
[331964354,1720905040542,-82.7060525,0.00011098,2]
[331964633,1720905043244,-73.07204533,0.00011098,2]
[331964635,1720905043257,-155.0,0.00011098,2]
[331964637,1720905043268,-155.31953925,0.00011098,2]
[331964639,1720905043279,-379.04217238,0.00011098,2]
[331964641,1720905043290,-155.08378114,0.00011098,2]
[331964643,1720905043301,-155.0,0.00011098,2]
[331964645,1720905043312,-144.70598115,0.00011098,2]
[331964690,1720905046299,-497.78466663,0.00011098,2]
[331964691,1720905046310,-161.39021817,0.00011098,2]
[331964692,1720905046321,-381.88247289,0.00011098,2]
[331964693,1720905046360,-879.98101664,0.00011098,2]
[331964694,1720905046371,-174.00463921,0.00011098,2]
[331964695,1720905046382,-626.36373021,0.00011098,2]
[331964696,1720905046391,-269.8232753,0.00011098,2]
[331964697,1720905046401,-163.66611752,0.00011098,2]
[331964698,1720905046411,-174.28077392,0.00011098,2]
[331964699,1720905046423,-533.98175146,0.00011098,2]
[331964700,1720905046437,-313.84024762,0.00011098,2]
[331964701,1720905046451,-266.40884658,0.00011098,2]
[331964702,1720905046464,-527.69345047,0.00011098,2]
[331964703,1720905046477,-900.0,0.00011098,2]
[331964704,1720905046488,-5414.93463371,0.00011098,2]
[331964705,1720905046499,-3052.61400844,0.00011098,2]
[331964706,1720905046511,-305.88426056,0.00011098,2]
[331964707,1720905046526,-402.083068,0.00011098,2]
[331964708,1720905046538,-2379.74333392,0.00011098,2]
[331964709,1720905046550,-729.41653924,0.00011098,2]
[331964710,1720905046562,-155.0,0.00011098,2]
[331964711,1720905046573,-155.31939259,0.00011098,2]
[331964712,1720905046585,-356.38582122,0.00011098,2]
[331964713,1720905046596,-957.48416959,0.00011098,2]
[331964714,1720905046608,-155.13435004,0.00011098,2]
[331964715,1720905046621,-627.65425399,0.00011098,2]
[331964716,1720905046635,-400.0,0.00011098,2]
[331964717,1720905046649,-652.02617088,0.00011098,2]
[331964718,1720905046661,-155.0,0.00011098,2]
[331964719,1720905046673,-369.18293041,0.00011098,2]
[331964720,1720905046685,-305.34741835,0.00011098,2]
[331964721,1720905046696,-2740.42496403,0.00011098,2]
[331964722,1720905046709,-724.99466785,0.00011098,2]
[331964723,1720905046720,-1393.53533746,0.00011098,2]
[331964724,1720905046731,-211.46410949,0.00011098,2]
[331964725,1720905046743,-155.0,0.00011098,2]
[331964726,1720905046754,-234.41661511,0.00011098,2]
[331964727,1720905046764,-200.15030873,0.00011098,2]
[331964728,1720905046774,-347.91425735,0.00011098,2]
[331964729,1720905046785,-158.62909359,0.00011098,2]
[331964730,1720905046796,-155.0,0.00011098,2]
[331964731,1720905046807,-366.84956352,0.00011098,2]
[331964732,1720905046818,-358.8214898,0.00011098,2]
[331964733,1720905046830,-190.39409018,0.00011098,2]
[331964734,1720905046842,-1266.09237124,0.00011098,2]
[331964735,1720905046854,-1066.42996666,0.00011098,2]
[331964736,1720905046867,-155.0,0.00011098,2]
[331964737,1720905046879,-202.44445,0.00011098,2]
[331964738,1720905046891,-186.33327844,0.00011098,2]
[331964739,1720905046903,-744.82827494,0.00011098,2]
[331964740,1720905046914,-155.14682893,0.00011098,2]
[331964741,1720905046925,-210.29076918,0.00011098,2]
[331964742,1720905046935,-321.7978946,0.00011098,2]
[331964743,1720905046946,-4529.26524917,0.00011098,2]
[331964744,1720905046957,-222.39746096,0.00011099,2]
[331964745,1720905046969,-17016.54944445,0.00011099,2]
[331964746,1720905046999,-9930.7546341,0.00011099,2]
[331964747,1720905047087,-17234.7255697,0.00011099,2]
[331964751,1720905078588,-270.37793359,9.902e-05,2]
[331964752,1720905079083,-173.55877246,9.902e-05,2]
[331964753,1720905079666,-177.18992506,9.902e-05,2]
[331964754,1720905269438,186.42,8.426e-05,2]
[331964755,1720905295874,647.48042413,8.426e-05,2]
[331964756,1720905296710,2559.97438918,8.426e-05,2]
[331964757,1720905388729,150.0,8.426e-05,2]
[331964758,1720905388749,150.0,8.426e-05,2]
[331964759,1720905388770,150.0,8.426e-05,2]
[331964760,1720905388791,150.0,8.426e-05,2]
[331964761,1720905388812,150.0,8.426e-05,2]
[331964762,1720905388832,150.0,8.426e-05,2]
[331964763,1720905388854,106.63709071,8.426e-05,2]
[331964764,1720905470506,150.0,8.426e-05,2]
[331964765,1720905470528,150.0,8.426e-05,2]
[331964766,1720905470549,150.0,8.426e-05,2]
[331964767,1720905470576,150.0,8.426e-05,2]
[331964768,1720905470599,142.48292623,8.426e-05,2]
[331964769,1720905549646,7.51707377,8.426e-05,2]
[331964770,1720905549668,150.0,8.426e-05,2]
[331964771,1720905549694,165.86627818,8.426e-05,2]
[331964772,1720905549715,276.61664805,8.426e-05,2]
[331964773,1720905559003,199.98285057,8.426e-05,2]
[331964774,1720905573006,-176.25121546,9.826e-05,2]
[331964775,1720905613833,308.6146599,8.426e-05,2]
[331964778,1720905701287,846.03,8.219e-05,2]
[331964780,1720905801113,186.42,7.741e-05,2]
[331964781,1720905907531,1604.78847042,7.741e-05,2]
[331964784,1720905921009,707.64505428,9e-05,2]
[331964785,1720905925058,2976.02750347,7.741e-05,2]
[331964786,1720905925091,500.0,7.741e-05,2]
[331964787,1720905925120,1109.30702119,7.741e-05,2]
[331964788,1720905925149,2287.11504593,7.741e-05,2]
[331964789,1720905925178,681.45008249,7.741e-05,2]
[331964790,1720905941742,2863.37721608,9e-05,2]
[331964791,1720905957855,290.46265469,7.741e-05,2]
[331964883,1720906232302,-250.0,9.552e-05,2]
[331964884,1720906232312,-309.21,9.654e-05,2]
[331964885,1720906232322,-432.1,9.661e-05,2]
[331964886,1720906232331,-250.0,9.665e-05,2]
[331964887,1720906232341,-498.14,9.665e-05,2]
[331964888,1720906232350,-14.64203882,9.665e-05,2]
[331964889,1720906232362,-158.91673364,9.665e-05,2]
[331964890,1720906232371,-823.74878454,9.826e-05,2]
[331964891,1720906232381,-1387.26564323,9.849e-05,2]
[331964892,1720906232397,-373.63862177,9.849e-05,2]
[331964893,1720906232407,-300.0,0.000101,3]
[331964894,1720906232416,-700.0,0.000102,3]
[331964895,1720906232426,-413.27406791,0.00010213,2]
[331964896,1720906232436,-1000.0,0.000103,3]
[331964897,1720906232446,-499.99,0.00010376,2]
[331964898,1720906232455,-150.0,0.00010376,2]
[331964899,1720906232465,-223.17,0.00010377,2]
[331964900,1720906232479,-764.76001217,0.00010377,2]
[331964901,1720906232490,-5329.45931921,0.00010377,2]
[331964902,1720906232505,-18490.30066862,0.00010377,2]
[331964903,1720906232515,-1400.0,0.000104,3]
[331964904,1720906232525,-846.03,0.00010479,2]
[331964905,1720906232534,-168.78,0.00010492,2]
[331964906,1720906232544,-176.25,0.00010492,2]
[331964907,1720906232553,-186.21,0.00010492,2]
[331964908,1720906232562,-6755.97,0.00010492,2]
[331964909,1720906232572,-577.21,0.00010492,2]
[331964910,1720906232581,-186.21,0.00010495,2]
[331964911,1720906232591,-186.21,0.00010498,2]
[331964912,1720906232600,-1700.0,0.000105,3]
[331964913,1720906232612,-186.21,0.000105,2]
[331964914,1720906232622,-186.21,0.00010503,2]
[331964915,1720906232632,-186.21,0.00010506,2]
[331964916,1720906232641,-186.21,0.00010509,2]
[331964917,1720906232651,-186.21,0.00010511,2]
[331964918,1720906232660,-186.21,0.00010514,2]
[331964919,1720906232669,-186.21,0.00010517,2]
[331964920,1720906232679,-186.21,0.0001052,2]
[331964921,1720906232688,-186.21,0.00010523,2]
[331964922,1720906232697,-186.21,0.00010525,2]
[331964923,1720906232707,-186.21,0.00010528,2]
[331964924,1720906232716,-186.21,0.00010531,2]
[331964925,1720906232726,-186.21,0.00010534,2]
[331964927,1720906232736,-186.21,0.00010536,2]
[331964929,1720906232745,-186.21,0.00010539,2]
[331964931,1720906232755,-186.21,0.00010542,2]
[331964933,1720906232764,-186.21,0.00010545,2]
[331964935,1720906232774,-233.86,0.00010576,2]
[331964937,1720906232784,-300.0,0.000106,3]
[331964939,1720906232793,-300.0,0.000107,3]
[331964941,1720906232803,-300.0,0.000108,3]
[331964943,1720906232813,-178.25145725,0.000108,2]
[331964945,1720906232823,-166.20319593,0.000108,2]
[331964947,1720906232833,-309.21,0.0001086,2]
[331964949,1720906232842,-429923.45340919,0.000109,2]
[331964951,1720906232858,-37879.78915325,0.000109,2]
[331964953,1720906232869,-2178.34953044,0.000109,2]
[331964956,1720906232891,-756.03810701,0.000109,2]
[331964959,1720906232903,-1101.00994531,0.000109,2]
[331965016,1720906238342,-261.9,9.383e-05,2]
[331965017,1720906238354,-464.978,9.383e-05,2]
[331965018,1720906238427,-642.1654626,9.383e-05,2]
[331965019,1720906238439,-384.85510291,9.383e-05,2]
[331965163,1720906240347,-621.82065119,9.383e-05,2]
[331965164,1720906240357,-1567.13654047,0.000109,2]
[331965172,1720906240426,-1459.128987,0.000109,2]
[331965187,1720906240576,-392.82938887,0.000109,2]
[331965544,1720906244360,-1692.48738834,0.000109,2]
[331965546,1720906244370,-5659.493,0.000109,2]
[331965732,1720906246347,-2645.60909593,9.383e-05,2]
[331965741,1720906246430,-198.33009971,9.383e-05,2]
[331965743,1720906246441,-21657.72015305,0.000109,2]
[331965745,1720906246453,-3106.26743278,0.000109,2]
[331965758,1720906246585,-1657.44004719,0.000109,2]
[331965770,1720906246694,-6787.6932697,0.000109,2]
[331965857,1720906274812,165.77392717,7.741e-05,2]
[331965858,1720906274833,165.77392717,7.741e-05,2]
[331965859,1720906274853,165.77392717,7.741e-05,2]
[331965860,1720906274874,165.77392717,7.741e-05,2]
[331965861,1720906274898,165.77392717,7.741e-05,2]
[331965862,1720906274922,165.77392717,7.741e-05,2]
[331965863,1720906274942,165.77392717,7.741e-05,2]
[331965864,1720906274963,165.77392717,7.741e-05,2]
[331965865,1720906274982,165.77392717,7.741e-05,2]
[331965866,1720906275002,165.77392717,7.741e-05,2]
[331965867,1720906275022,165.77392717,7.741e-05,2]
[331965868,1720906275044,165.77392717,7.741e-05,2]
[331965869,1720906275068,5917.76575168,7.741e-05,2]
[331965870,1720906279474,165.77392717,8.219e-05,2]
[331965871,1720906279498,165.77392717,8.219e-05,2]
[331965872,1720906279521,165.77392717,8.219e-05,2]
[331965873,1720906279544,165.77392717,8.219e-05,2]
[331965874,1720906279568,134.20429132,8.219e-05,2]
[331965882,1720906340967,600.0,8.219e-05,2]
[331965883,1720906366598,248.0307608,8.219e-05,2]
[331965895,1720906882149,860.13,8.219e-05,2]
[331965965,1720907404922,-4265.72122642,9.491e-05,2]
[331965966,1720907404983,-2838.66998858,9.491e-05,2]
[331965967,1720907405037,-250.0,9.539e-05,2]
[331965968,1720907405082,-208.23,9.552e-05,2]
[331965969,1720907405127,-208.23,9.6e-05,2]
[331965970,1720907405170,-256.73,9.706e-05,2]
[331965971,1720907405214,-300.0,9.785e-05,2]
[331965972,1720907405258,-203.86123784,9.786e-05,2]
[331965973,1720907423448,150.0,8.219e-05,2]
[331965974,1720907423470,150.0,8.219e-05,2]
[331965975,1720907423492,150.0,8.219e-05,2]
[331965976,1720907423514,150.0,8.219e-05,2]
[331965977,1720907423536,150.0,8.219e-05,2]
[331965978,1720907423557,88.58,8.219e-05,2]
[331965979,1720907431484,-796.13876216,9.786e-05,2]
[331965980,1720907431494,-444.82405248,9.786e-05,2]
[331965981,1720907431614,-3176.504,9.786e-05,2]
[331965982,1720907431648,-4878.48613227,9.786e-05,2]
[331965991,1720907437752,-1593.20145276,9.786e-05,2]
[331965992,1720907437767,-704.07436249,9.786e-05,2]
[331965993,1720907437776,-150.0,9.863e-05,2]
[331965994,1720907437786,-500.0,9.868e-05,2]
[331965995,1720907437797,-178.53,9.896e-05,2]
[331965996,1720907437806,-365.9413257,9.962e-05,2]
[331965997,1720907437815,-457.51707377,9.962e-05,2]
[331965998,1720907437825,-1021.93723804,9.975e-05,2]
[331966088,1720907439545,-1104.64276196,9.975e-05,2]
[331966089,1720907439555,-358.15128075,9.996e-05,2]
[331966103,1720907439682,-636.94000001,9.996e-05,2]
[331966130,1720907439957,-371.17871924,9.996e-05,2]
[331966133,1720907439966,-155.0,0.0001,2]
[331966135,1720907439975,-250.0,0.00010079,2]
[331966137,1720907439985,-700.0,0.000101,3]
[331966139,1720907439994,-1500.0,0.000102,3]
[331966141,1720907440003,-1921.79723419,0.000103,3]
[331966143,1720907440017,-378.20276581,0.000103,3]
[331966145,1720907440026,-3100.0,0.000104,3]
[331966147,1720907440035,-838.58,0.00010465,2]
[331966149,1720907440044,-4263.0,0.0001047,2]
[331966151,1720907440054,-3900.0,0.000105,3]
[331966153,1720907440063,-700.0,0.000106,3]
[331966155,1720907440073,-700.0,0.000107,3]
[331966157,1720907440082,-420.0,0.00010763,2]
[331966159,1720907440092,-700.0,0.000108,3]
[331966161,1720907440101,-221.58,0.00010847,2]
[331966163,1720907440111,-150.0,0.00010899,2]
[331966165,1720907440120,-11713.78842817,0.000109,2]
[331966167,1720907440134,-2027.2869774,0.000109,2]
[331966169,1720907440146,-2201.2276,0.000109,2]
[331966172,1720907440165,-11931.6,0.000109,2]
[331966414,1720907442546,-966.10476442,0.000109,2]
[331966420,1720907442591,-2921.08064535,0.000109,2]
[331966425,1720907442632,-423.95581672,0.000109,2]
[331966431,1720907442675,-696.5591496,0.000109,2]
[331966721,1720907445598,-3711.53114608,0.000109,2]
[331966723,1720907445611,-5293.73256722,0.000109,2]
[331966734,1720907445714,-319.43135258,0.000109,2]
[331966736,1720907445726,-6477.333078,0.000109,2]
[331966739,1720907445737,-2741.64108917,0.000109,2]
[331966751,1720907445836,-279.17457337,0.000109,2]
[331966753,1720907445847,-1233.8125804,0.000109,2]
[331966755,1720907445859,-184109.45407351,0.000109,2]
[331967368,1720907556139,159.3,7.887e-05,2]
[331967370,1720907609050,150.0,7.887e-05,2]
[331967371,1720907609071,150.0,7.887e-05,2]
[331967372,1720907609091,60.43759767,7.887e-05,2]
[331967374,1720907622618,150.0,7.887e-05,2]
[331967375,1720907622638,150.0,7.887e-05,2]
[331967376,1720907622657,150.0,7.887e-05,2]
[331967377,1720907622676,150.0,7.887e-05,2]
[331967378,1720907622695,150.0,7.887e-05,2]
[331967379,1720907622716,150.0,7.887e-05,2]
[331967380,1720907622738,150.0,7.887e-05,2]
[331967381,1720907622759,150.0,7.887e-05,2]
[331967382,1720907622780,150.0,7.887e-05,2]
[331967383,1720907622803,150.0,7.887e-05,2]
[331967384,1720907622824,150.0,7.887e-05,2]
[331967385,1720907622849,150.0,7.887e-05,2]
[331967386,1720907622869,150.0,7.887e-05,2]
[331967387,1720907622899,44.08714588,7.887e-05,2]
[331967389,1720907713651,150.0,7.887e-05,2]
[331967390,1720907713675,150.0,7.887e-05,2]
[331967391,1720907713697,150.0,7.887e-05,2]
[331967392,1720907713718,150.0,7.887e-05,2]
[331967393,1720907713784,1084.60410627,7.887e-05,2]
[331967394,1720907713830,654.95829606,7.887e-05,2]
[331967398,1720907804635,150.0,7.887e-05,2]
[331967399,1720907804656,150.0,7.887e-05,2]
[331967400,1720907804679,150.0,7.887e-05,2]
[331967401,1720907804703,150.0,7.887e-05,2]
[331967402,1720907819629,150.0,7.887e-05,2]
[331967403,1720907819650,150.0,7.887e-05,2]
[331967404,1720907819670,150.0,7.887e-05,2]
[331967405,1720907819716,150.0,7.887e-05,2]
[331967407,1720907910806,450.0,7.887e-05,2]
[331967408,1720908005877,284.05246613,8.219e-05,2]
[331967409,1720908005924,561.12753387,8.219e-05,2]
[331967481,1720908564163,156.06,8.219e-05,2]
[331967487,1720908567949,802.92,8.219e-05,2]
[331967490,1720908598914,-1810.52,9.762e-05,2]
[331967492,1720908598953,-979.87,9.763e-05,2]